{"text_format":"2","workbook":"xlsx","n_sheets":3,"sheets":["Főösszesítő","4 db kismedence","1 db nagymedence"],"not_rendered":{"charts":0,"images":0,"macros":0,"external_links":0,"defined_names":0,"comments":0,"pivot_tables":0},"unopened":[],"bounds":{"document_bytes":16777216,"sheet_cells":100000,"run_cost":"one","rows_first":2000,"rows_last":500,"rows_between":2000,"halvings":0,"cell_chars":16384,"cell_head_chars":4096},"cells_cut":0,"cells_raw":0,"read":"whole","date_system":"1900"}

{"sheet":"Főösszesítő","index":0,"n_rows":24,"n_cols":3,"rows_kept":24,"cut":false,"hidden":false,"merged":[[19,0,19,3],[8,2,8,3],[16,2,16,3],[17,2,17,3],[18,2,18,3],[12,2,12,3],[11,2,11,3],[10,2,10,3],[9,2,9,3],[0,0,0,3],[1,0,1,3],[3,0,3,3],[4,0,4,3],[5,0,5,3],[2,0,2,3]]}
["SZEGEDI TUDOMÁNYEGYETEM"]
[]
[]
[]
[]
[]
[null,null,"Kelt:"]
[]
["Szegedi Tudományegyetem                ",null,"Készítette:"]
["Műszaki Igazgatóság                    ",null,"Cégnév"]
["Műszaki Üzemeltetési Részleg         ",null,"Székhely"]
["6725 Szeged, Tisza Lajos krt. 107.     ",null,"Kapcsolattartó"]
["                                       ",null,"Elérhetőség"]
["                                       ",null,"                                       "]
["A munka tárgya:                       ",null,"                                       "]
["Szentesi gyógyfürdő medencei csobogók megszüntetése"]
[]
["                                                                              "]
[]
["Költségvetés főösszesítő"]
[null,"Nettó Ft","Bruttó Ft"]
["Anyagár",{"$f":"SUM('4 db kismedence'!G17+'1 db nagymedence'!G8)","v":0},{"$f":"SUM(B22*1.27)","v":0}]
["Munkadíj",{"$f":"SUM('4 db kismedence'!H17+'1 db nagymedence'!H8)","v":0},{"$f":"SUM(B23*1.27)","v":0}]
["Mindösszesen",{"$f":"SUM(B22:B23)","v":0},{"$f":"SUM(C22:C23)","v":0}]

{"sheet":"4 db kismedence","index":1,"n_rows":17,"n_cols":8,"rows_kept":17,"cut":false,"hidden":false,"merged":[]}
[null,"Anyag","ME","Mennyiség","Anyagár (nettó Ft)","Munkadíj (nettó Ft)","Össz anyagár (nettó Ft)","Össz munkadíj (nettó Ft)"]
[null,"BONTÁSI MUNKÁK Csővezetékek bontása, vízvezeték elzárás és nyitás,javítási munkák előtt és után","db",4,null,null,{"$f":"SUM(E2*D2)","v":0},{"$f":"SUM(F2*D2)","v":0}]
[null,"BONTÁSI MUNKÁK Csővezetékek bontása, horganyzott vagy fekete acélcsövek tartószerkezetről, vagy padlócsatornából lángvágással, deponálással, acél lefolyócső","m",{"$f":"1.5*4","v":6},null,null,{"$f":"SUM(E3*D3)","v":0},{"$f":"SUM(F3*D3)","v":0}]
[null,"BONTÁSI MUNKÁK Vízellátás berendezési tárgyak leszerelése, szelepek, bekötőcsövek, könyökök, zsírfogók stb. Lefolyó rács","klt",4,null,null,0,0]
[null,"BONTOTT HULLADÉK SZÁLLÍTÁSÁHOZ KAPCSOLÓDÓ MUNKÁK Bontott fém hulladék felrakása szállítóeszközre  kézi munkával és szállítása","klt",4,null,null,0,0]
[null,"MŰANYAG CSŐVEZETÉK ÉS IDOMAI KM nyomócsőidom szerelése, csőátmérő: DN 100 WAVIN KM-PVC T idom 110/50/110 mm, PN 10, CNT110","db",4,null,null,0,0]
[null,"KARIMÁK,  ELHELYEZÉSE Karima hegesztett kötéshez, a csatlakozó csővég megmunkálásával, DN 100, toldatos karima Hegeszthető toldatos karima,  DN 100","db",8,null,null,0,0]
[null,"laza karima DN 100","db",8,null,null,0,0]
[null,"LEFOLYÓVEZETÉKEK egycsatlakozású csőidom csővégelzáró 110 mm,","db",4,null,null,0,0]
[null,"LEFOLYÓVEZETÉKEK kétcsatlakozású csőidom DN 100 lefolyócső tisztítóidom, 110 mm,","db",4,null,null,0,0]
[null,"MŰANYAG CSŐVEZETÉK ÉS IDOMAI KM nyomócső szerelése, csőátmérő: DN 63-100 között PIPELIFE PVC KM tokos nyomócső 110 mm x 2,7 mm x 6000 mm, KM110/6M6B","m",16,null,null,0,0]
[null,"VÍZELLÁTÁS BERENDEZÉSI TÁRGYAI Rozsdamentes folyókák elhelyezése és bekötése, elemekből összeépíthető rendszer, rácsos kivitel, egyenes elemek, hossz: 1000 mm-ig rácsos folyóka rozsdamentes acélból","db",4,null,null,0,0]
[null,"kivezető elemek, kivezetés felsőrész nélkül rácsos folyóka végkivezetéses elem,  függőleges csőcsonkkal, rozsdamentes acélból,","db",4,null,null,0,0]
[null,"rácsok, K 3 kN, L 15 kN terhelési osztályra sima rács","db",4,null,null,0,0]
[null,"NYOMÁSPRÓBÁK Tömörségi nyomáspróba, külső csőátmérő: 48,3 - 60,3 mm között","klt",4,null,null,0,0]
[null,"Szilárdsági nyomáspróba, külső csőátmérő: 48,3 - 57,0 mm között","klt",4,null,null,0,0]
[null,"Összesen",{"$nulls":4},{"$f":"SUM(G2:G16)","v":0},{"$f":"SUM(H2:H16)","v":0}]

{"sheet":"1 db nagymedence","index":2,"n_rows":8,"n_cols":8,"rows_kept":8,"cut":false,"hidden":false,"merged":[]}
[null,"Anyag","ME","Mennyiség","Anyagár (nettó Ft)","Munkadíj (nettó Ft)","Össz anyagár (nettó Ft)","Össz munkadíj (nettó Ft)"]
[null,"BONTÁSI MUNKÁK Csővezetékek bontása, vízvezeték elzárás és nyitás, javítási munkák előtt és után","db",1,null,null,{"$f":"SUM(D2*E2)","v":0},{"$f":"SUM(F2*D2)","v":0}]
[null,"BONTÁSI MUNKÁK Csővezetékek bontása, horganyzott vagy fekete acélcsövek tartószerkezetről, vagy padlócsatornából lángvágással, deponálással, acél lefolyócső","m",2,null,null,{"$f":"SUM(D3*E3)","v":0},{"$f":"SUM(F3*D3)","v":0}]
[null,"BONTOTT HULLADÉK SZÁLLÍTÁSÁHOZ KAPCSOLÓDÓ MUNKÁK Bontott fém hulladék felrakása szállítóeszközre  kézi munkával és szállítása","klt",1,null,null,0,0]
[null,"ROZSDAMENTES, SAVÁLLÓ ACÉLCSÖVEK ÉS IDOMOK SZERELÉSE Rozsdamentes, saválló acélcső szerelése, hegesztett vagy menetes kötésekhez, cső elhelyezése csőidomokkal, szabadon vagy csatornába, elhelyezve, beállítva, (nyomáspróba külön tételben), WNr.1.4541 min. (KO 36 Ti) minőségben, külső átmérő: 48,3 - 88,9 mm között, külső átmérő: 57,0 mm falvastagság: 1,6 mm","m",3,null,null,0,0]
[null,"NYOMÁSPRÓBÁK Tömörségi nyomáspróba, külső csőátmérő: 48,3 - 60,3 mm között","klt",1,null,null,0,0]
[null,"Szilárdsági nyomáspróba, külső csőátmérő: 48,3 - 57,0 mm között","klt",1,null,null,0,0]
[null,"Összesen",{"$nulls":4},{"$f":"SUM(G2:G7)","v":0},{"$f":"SUM(H2:H7)","v":0}]